fUST/lending_fUST_20250730
["ID","MTS","AMOUNT","RATE_DAILY","PERIOD"]
[376137138,1753873845126,-177.659342,0.00021516,2]
[376137140,1753873845136,-177.659342,0.00021516,2]
[376137142,1753873845146,-151.0,0.00021516,2]
[376137144,1753873845158,-151.0,0.00021516,2]
[376137146,1753873845167,-5231.18195504,0.00021523,2]
[376137148,1753873845177,-179.78425889,0.00021559,2]
[376137150,1753873845186,-610.56,0.00021566,2]
[376137152,1753873845195,-1703.2,0.00021567,2]
[376137154,1753873845204,-881.64,0.00021567,2]
[376137156,1753873845214,-460.0,0.00021567,2]
[376137158,1753873845225,-585.09,0.00021567,2]
[376137160,1753873845234,-460.0,0.00021567,2]
[376137162,1753873845243,-485.64,0.00021567,2]
[376137164,1753873845252,-739.41,0.00021568,2]
[376137166,1753873845262,-2268.1,0.00021569,2]
[376137168,1753873845272,-460.0,0.00021569,2]
[376137170,1753873845281,-500.0,0.0002157,2]
[376137172,1753873845290,-911.98,0.00021571,2]
[376137174,1753873845300,-510.86,0.00021571,2]
[376137176,1753873845309,-507.65,0.00021571,2]
[376137178,1753873845319,-151.0,0.000216,3]
[376137180,1753873845328,-460.0,0.00021638,2]
[376137182,1753873845338,-599.44,0.00021638,2]
[376137184,1753873845347,-151.0,0.00021639,2]
[376137186,1753873845357,-151.0,0.00021639,2]
[376137188,1753873845366,-178.734,0.00021639,2]
[376137190,1753873845376,-180.571737,0.00021639,2]
[376137192,1753873845387,-151.0,0.00021672,2]
[376137194,1753873845397,-183.184476,0.00021672,2]
[376137196,1753873845406,-151.070845,0.00021672,2]
[376137198,1753873845415,-738.946,0.00021735,2]
[376137200,1753873845424,-71827.75948579,0.00021739,2]
[376137207,1753873845511,-59115.57673028,0.00021739,2]
[376137208,1753873845521,-151.0,0.00021739,2]
[376137209,1753873845530,-151.0,0.00021739,2]
[376137210,1753873845539,-151.0,0.00021739,2]
[376137211,1753873845548,-151.0,0.00021739,2]
[376137213,1753873845556,-151.0,0.00021739,2]
[376137215,1753873845565,-151.0,0.00021739,2]
[376137217,1753873845573,-253.07538,0.00021739,2]
[376137219,1753873845581,-151.0,0.00021739,2]
[376137221,1753873845590,-151.0,0.00021739,2]
[376137223,1753873845599,-188.862695,0.00021739,2]
[376137225,1753873845609,-151.0,0.00021739,2]
[376137226,1753873845619,-188.862695,0.00021739,2]
[376137229,1753873845628,-151.0,0.00021739,2]
[376137231,1753873845638,-151.0,0.00021739,2]
[376137233,1753873845647,-151.0,0.00021739,2]
[376137234,1753873845657,-418.382588,0.00021739,2]
[376137237,1753873845667,-151.0,0.00021739,2]
[376137239,1753873845680,-507.877875,0.00021739,2]
[376137241,1753873845690,-507.877875,0.00021739,2]
[376137243,1753873845701,-240.890443,0.00021739,2]
[376137245,1753873845711,-240.890443,0.00021739,2]
[376137247,1753873845720,-151.0,0.00021739,2]
[376137249,1753873845730,-151.0,0.00021739,2]
[376137251,1753873845740,-396.050044,0.00021739,2]
[376137253,1753873845750,-396.050044,0.00021739,2]
[376137255,1753873845759,-151.0,0.00021739,2]
[376137257,1753873845768,-151.0,0.00021739,2]
[376137259,1753873845777,-177.659342,0.00021739,2]
[376137261,1753873845786,-177.659342,0.00021739,2]
[376137262,1753873845796,-418.990565,0.00021739,2]
[376137264,1753873845805,-418.990565,0.00021739,2]
[376137267,1753873845815,-151.0,0.00021739,2]
[376137269,1753873845824,-151.0,0.00021739,2]
[376137271,1753873845835,-151.0,0.00021739,2]
[376137273,1753873845845,-151.0,0.00021739,2]
[376137275,1753873845854,-151.0,0.00021739,2]
[376137277,1753873845864,-151.0,0.00021739,2]
[376137279,1753873845873,-151.0,0.00021739,2]
[376137281,1753873845882,-151.0,0.00021739,2]
[376137283,1753873845892,-151.0,0.00021739,2]
[376137285,1753873845903,-635.043606,0.00021739,2]
[376137287,1753873845917,-635.043606,0.00021739,2]
[376137289,1753873845926,-500.0,0.00021739,2]
[376137291,1753873845936,-500.0,0.00021739,2]
[376137293,1753873845947,-437.42298937,0.00021739,2]
[376137295,1753873845957,-500.0,0.00021739,2]
[376137298,1753873845966,-218.87471,0.00021739,2]
[376137300,1753873845976,-151.0,0.00021739,2]
[376137302,1753873845986,-299.992256,0.00021739,2]
[376137304,1753873845998,-299.992256,0.00021739,2]
[376137306,1753873846007,-168.0,0.00021761,2]
[376137308,1753873846018,-528.4,0.00021765,4]
[376137310,1753873846028,-501.02742172,0.00021773,2]
[376137312,1753873846038,-500.0,0.00021773,2]
[376137314,1753873846048,-500.0,0.00021773,2]
[376137316,1753873846057,-500.0,0.00021773,2]
[376137318,1753873846067,-500.0,0.00021773,2]
[376137320,1753873846076,-500.0,0.00021773,2]
[376137322,1753873846087,-503.410389,0.00021773,2]
[376137325,1753873846096,-500.0,0.00021773,2]
[376137327,1753873846106,-500.0,0.00021773,2]
[376137329,1753873846115,-335.47963963,0.00021773,2]
[376137331,1753873846128,-164.52036037,0.00021773,2]
[376137333,1753873846137,-505.08519115,0.00021773,2]
[376137335,1753873846147,-500.0,0.00021773,2]
[376137337,1753873846157,-500.0,0.00021773,2]
[376137339,1753873846166,-500.0,0.00021773,2]
[376137341,1753873846176,-233.15556139,0.00021773,2]
[376137343,1753873846186,-500.0,0.00021773,2]
[376137345,1753873846195,-500.0,0.00021773,2]
[376137347,1753873846205,-559.30586738,0.00021773,2]
[376137349,1753873846214,-500.0,0.00021773,2]
[376137351,1753873846225,-500.0,0.00021773,2]
[376137353,1753873846234,-500.0,0.00021773,2]
[376137355,1753873846244,-500.0,0.00021773,2]
[376137357,1753873846253,-500.0,0.00021773,2]
[376137359,1753873846263,-180.311938,0.00021773,2]
[376137361,1753873846273,-151.0,0.00021773,2]
[376137363,1753873846282,-635.043606,0.00021773,2]
[376137365,1753873846291,-635.043606,0.00021773,2]
[376137368,1753873846303,-151.0,0.000218,4]
[376137370,1753873846312,-610.56,0.0002184,2]
[376137372,1753873846322,-554.50006042,0.00021841,2]
[376137375,1753873846341,-1064.86,0.00021841,2]
[376137392,1753873846499,-83.83993958,0.00021841,2]
[376137394,1753873846509,-881.64,0.00021841,2]
[376137396,1753873846518,-460.0,0.00021841,2]
[376137398,1753873846528,-585.09,0.00021841,2]
[376137400,1753873846538,-460.0,0.00021841,2]
[376137403,1753873846548,-485.64,0.00021841,2]
[376137405,1753873846557,-154.23855,0.00021842,2]
[376137407,1753873846567,-151.0,0.00021842,2]
[376137409,1753873846576,-739.41,0.00021842,2]
[376137411,1753873846586,-177.659342,0.00021843,2]
[376137413,1753873846595,-177.659342,0.00021843,2]
[376137415,1753873846605,-151.0,0.00021843,2]
[376137417,1753873846614,-151.0,0.00021843,2]
[376137419,1753873846624,-2268.1,0.00021843,2]
[376137421,1753873846634,-460.0,0.00021843,2]
[376137423,1753873846644,-154.91865829,0.00021844,2]
[376137425,1753873846653,-911.98,0.00021845,2]
[376137427,1753873846664,-510.86,0.00021845,2]
[376137429,1753873846673,-507.65,0.00021845,2]
[376137431,1753873846683,-151.0,0.000219,4]
[376137433,1753873846692,-299.992256,0.000219,2]
[376137435,1753873846701,-299.992259,0.000219,2]
[376137437,1753873846711,-1755.0,0.00021905,2]
[376137439,1753873846719,-1755.0,0.00021905,2]
[376137441,1753873846730,-1755.0,0.00021905,2]
[376137443,1753873846739,-429.24666973,0.00021905,2]
[376137445,1753873846751,-1325.75333027,0.00021905,2]
[376137447,1753873846760,-1755.0,0.00021905,2]
[376137449,1753873846770,-162.33832936,0.00021905,2]
[376137451,1753873846779,-226.4970499,0.00021905,2]
[376137453,1753873846789,-460.0,0.00021912,2]
[376137455,1753873846799,-599.44,0.00021912,2]
[376137457,1753873846808,-151.0,0.00021918,2]
[376137459,1753873846818,-151.0,0.00021918,2]
[376137461,1753873846827,-151.0,0.00021918,2]
[376137464,1753873846837,-151.0,0.00021918,2]
[376137466,1753873846847,-151.0,0.00021918,2]
[376137468,1753873846856,-151.0,0.00021918,2]
[376137470,1753873846866,-183.58324,0.00021918,2]
[376137472,1753873846875,-211.04224927,0.00021918,6]
[376137474,1753873846884,-150.95560251,0.00021918,2]
[376137476,1753873846893,-151.0,0.00021974,7]
[376137478,1753873846906,-151.0,0.00021974,7]
[376137480,1753873846915,-151.0,0.00021974,7]
[376137482,1753873846925,-151.0,0.00021974,7]
[376137483,1753873846934,-160.1336292,0.00021981,2]
[376137486,1753873846944,-178.4701425,0.00021981,2]
[376137487,1753873846954,-360.0,0.00021987,2]
[376137489,1753873846964,-59440.10703324,0.00021998,2]
[376137491,1753873846975,-151.0,0.00021998,7]
[376137494,1753873846985,-151.0,0.00021998,7]
[376137496,1753873846995,-151.383998,0.00021998,7]
[376137498,1753873847004,-151.0,0.00021998,7]
[376137500,1753873847014,-151.0,0.00021998,7]
[376137501,1753873847023,-151.0,0.00021998,7]
[376137504,1753873847034,-188.862695,0.00021998,7]
[376137506,1753873847043,-151.0,0.00021998,7]
[376137508,1753873847053,-188.862695,0.00021998,7]
[376137510,1753873847062,-152.875733,0.00021998,7]
[376137512,1753873847071,-151.0,0.00021998,7]
[376137514,1753873847082,-252.680532,0.00021998,7]
[376137516,1753873847092,-418.382588,0.00021998,7]
[376137518,1753873847101,-151.0,0.00021998,7]
[376137520,1753873847111,-507.877875,0.00021998,7]
[376137522,1753873847122,-507.877875,0.00021998,7]
[376137524,1753873847132,-240.890443,0.00021998,7]
[376137526,1753873847142,-240.890443,0.00021998,7]
[376137528,1753873847152,-151.0,0.00021998,7]
[376137530,1753873847161,-151.0,0.00021998,7]
[376137532,1753873847170,-396.050044,0.00021998,7]
[376137534,1753873847180,-396.050044,0.00021998,7]
[376137536,1753873847190,-151.0,0.00021998,7]
[376137538,1753873847199,-177.659342,0.00021998,7]
[376137540,1753873847209,-177.659342,0.00021998,7]
[376137542,1753873847219,-418.990565,0.00021998,7]
[376137544,1753873847230,-418.990565,0.00021998,7]
[376137546,1753873847240,-151.0,0.00021998,7]
[376137548,1753873847250,-151.0,0.00021998,7]
[376137550,1753873847259,-246.002888,0.00021998,7]
[376137552,1753873847269,-151.0,0.00021998,7]
[376137554,1753873847278,-151.0,0.00021998,7]
[376137556,1753873847288,-151.0,0.00021998,7]
[376137558,1753873847298,-635.043606,0.00021998,7]
[376137560,1753873847307,-635.043606,0.00021998,7]
[376137562,1753873847317,-151.0,0.00021998,7]
[376137564,1753873847327,-1869.58,0.00022,7]
[376137566,1753873847336,-4153.15,0.00022,7]
[376137568,1753873847346,-277.20980652,0.00022,2]
[376137570,1753873847355,-151.0,0.00022,7]
[376137572,1753873847365,-151.0,0.00022,7]
[376137574,1753873847374,-151.0,0.00022,3]
[376137576,1753873847385,-312.16666667,0.00022,7]
[376137578,1753873847394,-160.0,0.00022,7]
[376137580,1753873847404,-151.0,0.00022,2]
[376137583,1753873847414,-167.0,0.00022,2]
[376137585,1753873847424,-12639.5777639,0.00022,7]
[376137587,1753873847434,-1902.35,0.00022,2]
[376137589,1753873847444,-161.0,0.00022,2]
[376137591,1753873847453,-1000.0,0.00022021,2]
[376137593,1753873847463,-275.00774496,0.00022021,2]
[376137595,1753873847472,-1000.0,0.00022021,2]
[376137597,1753873847482,-500.0,0.00022021,2]
[376137599,1753873847491,-1000.0,0.00022021,2]
[376137601,1753873847501,-532.61838289,0.00022021,2]
[376137603,1753873847510,-1052.81674642,0.00022021,2]
[376137605,1753873847520,-430.02818816,0.00022021,2]
[376137607,1753873847533,-569.97181184,0.00022021,2]
[376137609,1753873847542,-116.66180308,0.00022021,2]
[376137621,1753873847644,-2600.25557855,0.0002149,10]
[376137634,1753873847767,-162.83442145,0.0002149,10]
[376137637,1753873847778,-894.88417362,0.00022021,2]
[376137639,1753873847788,-604.89858281,0.00022021,2]
[376137641,1753873847798,-463.13408021,0.00022021,2]
[376140746,1753873881402,353.79393509,0.000188,2]
[376141436,1753873942304,4074.31877537,0.000188,2]
[376141449,1753874776251,161.91007,0.00013699,2]
[376141516,1753875032162,-300.0,0.00018823,2]
[376141517,1753875032172,-1200.0,0.00018823,2]
[376141518,1753875032182,-460.0,0.00018824,2]
[376141519,1753875032192,-460.0,0.00018824,2]
[376141520,1753875032203,-460.0,0.00018824,2]
[376141521,1753875032213,-460.0,0.00018824,2]
[376141522,1753875032223,-460.0,0.00018824,2]
[376141523,1753875032232,-345.82702641,0.00018824,2]
[376141524,1753875032241,-75.09264513,0.00018824,2]
[376141527,1753875032275,-353.79393509,0.00018824,2]
[376141529,1753875032286,-31.11341978,0.00018824,2]
[376141530,1753875032296,-462.64437566,0.00018824,2]
[376141531,1753875032307,-460.0,0.00018824,2]
[376141533,1753875032316,-460.0,0.00018825,2]
[376141534,1753875032327,-460.0,0.00018825,2]
[376141536,1753875032336,-460.0,0.00018825,2]
[376141538,1753875032346,-460.0,0.00018825,2]
[376141539,1753875032355,-460.0,0.00018825,2]
[376141540,1753875032365,-460.0,0.00018825,2]
[376141541,1753875032374,-460.0,0.00018825,2]
[376141542,1753875032384,-460.0,0.00018825,2]
[376141543,1753875032394,-460.0,0.00018825,2]
[376141544,1753875032403,-557.8,0.00018825,2]
[376141545,1753875032412,-460.0,0.00018825,2]
[376141546,1753875032422,-607.40466244,0.00018825,2]
[376141547,1753875032431,-460.0,0.00018825,2]
[376141548,1753875032441,-460.0,0.00018825,2]
[376141549,1753875032453,-279.89947688,0.00018825,2]
[376141550,1753875032463,-460.0,0.00018825,2]
[376141552,1753875032473,-307.90349677,0.00018825,2]
[376141553,1753875032482,-460.0,0.00018825,2]
[376141554,1753875032492,-460.0,0.00018825,2]
[376141555,1753875032501,-460.0,0.00018825,2]
[376141556,1753875032510,-460.0,0.00018825,2]
[376141557,1753875032520,-460.0,0.00018825,2]
[376141558,1753875032529,-460.0,0.00018825,2]
[376141559,1753875032538,-460.0,0.00018825,2]
[376141560,1753875032548,-460.0,0.00018825,2]
[376141561,1753875032557,-460.0,0.00018825,2]
[376141562,1753875032566,-460.0,0.00018825,2]
[376141563,1753875032575,-500.40777051,0.00018825,2]
[376141564,1753875032585,-460.0,0.00018825,2]
[376141565,1753875032595,-227.08782409,0.00018825,2]
[376141566,1753875032605,-429.88852461,0.00018825,2]
[376141567,1753875032614,-460.0,0.00018825,2]
[376141568,1753875032624,-460.0,0.00018825,2]
[376141569,1753875032634,-460.0,0.00018825,2]
[376141570,1753875032643,-460.0,0.00018825,2]
[376141571,1753875032653,-460.0,0.00018825,2]
[376141572,1753875032663,-919.22,0.00018825,2]
[376141573,1753875032673,-460.0,0.00018825,2]
[376141574,1753875032683,-460.0,0.00018825,2]
[376141575,1753875032692,-460.0,0.00018825,2]
[376141576,1753875032702,-460.0,0.00018825,2]
[376141577,1753875032711,-460.0,0.00018825,2]
[376141578,1753875032720,-460.0,0.00018825,2]
[376141579,1753875032729,-460.0,0.00018825,2]
[376141580,1753875032739,-460.0,0.00018825,2]
[376141581,1753875032749,-460.0,0.00018825,2]
[376141582,1753875032759,-460.0,0.00018825,2]
[376141583,1753875032770,-460.0,0.00018825,2]
[376141584,1753875032779,-460.0,0.00018825,2]
[376141585,1753875032789,-460.0,0.00018825,2]
[376141586,1753875032799,-460.0,0.00018825,2]
[376141587,1753875032808,-460.0,0.00018825,2]
[376141588,1753875032818,-460.0,0.00018825,2]
[376141589,1753875032829,-481.29577317,0.00018825,2]
[376141590,1753875032839,-460.0,0.00018825,2]
[376141591,1753875032849,-460.0,0.00018825,2]
[376141592,1753875032858,-461.27915219,0.00018825,2]
[376141593,1753875032867,-460.0,0.00018825,2]
[376141594,1753875032877,-460.0,0.00018825,2]
[376141595,1753875032887,-460.0,0.00018825,2]
[376141596,1753875032897,-460.0,0.00018825,2]
[376141597,1753875032906,-460.0,0.00018825,2]
[376141598,1753875032916,-460.0,0.00018825,2]
[376141599,1753875032925,-460.0,0.00018825,2]
[376141600,1753875032935,-460.0,0.00018825,2]
[376141601,1753875032947,-460.0,0.00018825,2]
[376141602,1753875032956,-1640.18,0.00018825,2]
[376141603,1753875032966,-460.0,0.00018825,2]
[376141604,1753875032975,-460.0,0.00018825,2]
[376141605,1753875032985,-460.0,0.00018825,2]
[376141606,1753875032994,-460.0,0.00018825,2]
[376141607,1753875033005,-460.0,0.00018825,2]
[376141608,1753875033015,-460.0,0.00018825,2]
[376141609,1753875033024,-460.0,0.00018825,2]
[376141610,1753875033034,-460.0,0.00018825,2]
[376141611,1753875033045,-460.0,0.00018825,2]
[376141612,1753875033055,-460.0,0.00018825,2]
[376141613,1753875033065,-460.0,0.00018825,2]
[376141614,1753875033075,-460.0,0.00018826,2]
[376141615,1753875033085,-460.0,0.00018826,2]
[376141616,1753875033095,-460.0,0.00018826,2]
[376141617,1753875033105,-460.0,0.00018826,2]
[376141618,1753875033115,-460.0,0.00018826,2]
[376141619,1753875033124,-460.0,0.00018826,2]
[376141620,1753875033134,-460.0,0.00018826,2]
[376141621,1753875033143,-460.0,0.00018826,2]
[376141622,1753875033153,-460.0,0.00018826,2]
[376141623,1753875033163,-460.0,0.00018826,2]
[376141624,1753875033173,-537.76,0.00018826,2]
[376141625,1753875033183,-460.0,0.00018826,2]
[376141626,1753875033194,-460.0,0.00018826,2]
[376141627,1753875033204,-461.81385601,0.00018826,2]
[376141628,1753875033214,-460.0,0.00018826,2]
[376141629,1753875033224,-460.0,0.00018826,2]
[376141630,1753875033234,-460.0,0.00018826,2]
[376141631,1753875033244,-460.0,0.00018826,2]
[376141632,1753875033257,-460.0,0.00018826,2]
[376141633,1753875033267,-460.0,0.00018826,2]
[376141634,1753875033276,-388.97709275,0.00018826,2]
[376141635,1753875033286,-460.0,0.00018826,2]
[376141636,1753875033295,-460.0,0.00018826,2]
[376141637,1753875033305,-460.0,0.00018826,2]
[376141638,1753875033315,-460.0,0.00018826,2]
[376141639,1753875033325,-460.0,0.00018826,2]
[376141640,1753875033335,-460.0,0.00018826,2]
[376141641,1753875033345,-460.0,0.00018826,2]
[376141642,1753875033355,-460.0,0.00018826,2]
[376141643,1753875033364,-460.0,0.00018826,2]
[376141644,1753875033374,-460.0,0.00018826,2]
[376141645,1753875033384,-460.0,0.00018826,2]
[376141646,1753875033395,-460.0,0.00018826,2]
[376141647,1753875033404,-460.0,0.00018826,2]
[376141648,1753875033415,-226.04847633,0.00018826,2]
[376141650,1753875033424,-460.0,0.00018826,2]
[376141652,1753875033434,-460.0,0.00018826,2]
[376141654,1753875033446,-460.0,0.00018826,2]
[376141660,1753875033604,-264.39802173,0.00018827,2]
[376141661,1753875033615,-461.17252775,0.00018827,2]
[376141662,1753875033624,-462.56908952,0.00018827,2]
[376141663,1753875033634,-462.12762289,0.00018827,2]
[376141664,1753875033644,-462.66433528,0.00018827,2]
[376141665,1753875033653,-460.0,0.00018827,2]
[376141666,1753875033663,-460.0,0.00018827,2]
[376141667,1753875033672,-460.0,0.00018827,2]
[376141668,1753875033682,-460.0,0.00018827,2]
[376141669,1753875033691,-460.0,0.00018827,2]
[376141670,1753875033702,-460.0,0.00018827,2]
[376141671,1753875033712,-460.0,0.00018827,2]
[376141672,1753875033721,-583.0915925,0.00018827,2]
[376141673,1753875033731,-460.0,0.00018827,2]
[376141674,1753875033740,-235.8724524,0.00018827,2]
[376141675,1753875033749,-460.0,0.00018827,2]
[376141676,1753875033758,-172.69648233,0.00018827,2]
[376141677,1753875033767,-460.0,0.00018827,2]
[376141678,1753875033776,-460.0,0.00018827,2]
[376141679,1753875033786,-460.0,0.00018827,2]
[376141680,1753875033795,-460.0,0.00018827,2]
[376141681,1753875033804,-460.0,0.00018827,2]
[376141682,1753875033813,-460.0,0.00018827,2]
[376141683,1753875033822,-460.0,0.00018827,2]
[376141684,1753875033832,-468.1138545,0.00018827,2]
[376141685,1753875033841,-460.0,0.00018827,2]
[376141686,1753875033851,-460.0,0.00018827,2]
[376141687,1753875033859,-460.0,0.00018827,2]
[376141688,1753875033868,-460.0,0.00018827,2]
[376141689,1753875033878,-460.0,0.00018827,2]
[376141690,1753875033887,-278.190123,0.00018827,2]
[376141691,1753875033896,-461.83340854,0.00018827,2]
[376141692,1753875033905,-311.36028501,0.00018827,2]
[376141693,1753875033914,-460.0,0.00018827,2]
[376141694,1753875033923,-460.0,0.00018827,2]
[376141695,1753875033933,-460.0,0.00018827,2]
[376141696,1753875033942,-460.0,0.00018827,2]
[376141697,1753875033952,-460.0,0.00018827,2]
[376141698,1753875033961,-460.0,0.00018827,2]
[376141699,1753875033970,-460.0,0.00018827,2]
[376141700,1753875033980,-460.0,0.00018827,2]
[376141701,1753875033989,-460.0,0.00018827,2]
[376141702,1753875033999,-460.0,0.00018827,2]
[376141703,1753875034009,-1377.58,0.00018827,2]
[376141704,1753875034018,-460.0,0.00018828,2]
[376141705,1753875034027,-511.6,0.00018828,2]
[376141706,1753875034037,-460.0,0.00018828,2]
[376141707,1753875034047,-525.73235725,0.00018828,2]
[376141708,1753875034057,-460.0,0.00018898,2]
[376141709,1753875034066,-460.0,0.00018898,2]
[376141710,1753875034077,-460.0,0.00018898,2]
[376141711,1753875034087,-849.64,0.00018898,2]
[376141712,1753875034097,-460.0,0.00018898,2]
[376141713,1753875034106,-502.28987204,0.000189,2]
[376141714,1753875034115,-460.0,0.00019098,2]
[376141715,1753875034125,-460.0,0.00019098,2]
[376141716,1753875034135,-460.0,0.00019099,2]
[376141717,1753875034145,-597.32,0.00019099,2]
[376141718,1753875034155,-460.0,0.00019099,2]
[376141719,1753875034166,-460.0,0.00019099,2]
[376141720,1753875034176,-221.46081198,0.00019099,2]
[376141721,1753875034190,-238.53918802,0.00019099,2]
[376141722,1753875034202,-460.0,0.00019099,2]
[376141723,1753875034212,-590.3,0.00019099,2]
[376141724,1753875034223,-460.0,0.00019099,2]
[376141725,1753875034232,-919.22,0.00019099,2]
[376141726,1753875034243,-460.0,0.00019099,2]
[376141727,1753875034257,-460.0,0.00019099,2]
[376141728,1753875034267,-460.0,0.00019099,2]
[376141729,1753875034276,-460.0,0.00019099,2]
[376141730,1753875034286,-460.0,0.00019099,2]
[376141731,1753875034297,-460.0,0.00019099,2]
[376141732,1753875034307,-460.0,0.00019099,2]
[376141733,1753875034317,-460.0,0.00019099,2]
[376141734,1753875034327,-460.0,0.00019099,2]
[376141735,1753875034338,-460.0,0.00019099,2]
[376141736,1753875034347,-460.0,0.00019099,2]
[376141737,1753875034357,-460.0,0.00019099,2]
[376141738,1753875034367,-460.0,0.00019099,2]
[376141739,1753875034377,-460.0,0.00019099,2]
[376141740,1753875034387,-1640.18,0.00019099,2]
[376141741,1753875034397,-460.0,0.00019099,2]
[376141742,1753875034406,-356.59211108,0.00019099,2]
[376141753,1753875038456,-460.0,0.00018824,2]
[376141754,1753875038466,-384.5497084,0.00018825,2]
[376141755,1753875038508,-75.4502916,0.00018825,2]
[376141756,1753875038518,-460.0,0.00018827,2]
[376141757,1753875038528,-103.40788892,0.00019099,2]
[376141758,1753875038538,-460.0,0.00019099,2]
[376141759,1753875038547,-460.0,0.00019099,2]
[376141760,1753875038557,-460.0,0.00019099,2]
[376141761,1753875038567,-460.0,0.00019099,2]
[376141762,1753875038576,-460.0,0.000191,2]
[376141763,1753875038586,-460.0,0.000191,2]
[376141764,1753875038596,-460.0,0.000191,2]
[376141765,1753875038606,-568.44,0.000191,2]
[376141766,1753875038616,-460.0,0.000191,2]
[376141767,1753875038626,-460.0,0.000191,2]
[376141768,1753875038635,-460.0,0.000191,2]
[376141769,1753875038645,-460.0,0.000191,2]
[376141770,1753875038654,-460.0,0.000191,2]
[376141771,1753875038664,-460.0,0.000191,2]
[376141772,1753875038673,-460.0,0.000191,2]
[376141773,1753875038682,-460.0,0.000191,2]
[376141774,1753875038691,-460.0,0.00019101,2]
[376141775,1753875038703,-1377.58,0.00019101,2]
[376141776,1753875038712,-460.0,0.00019101,2]
[376141777,1753875038722,-460.0,0.00019102,2]
[376141778,1753875038731,-460.0,0.00019102,2]
[376141779,1753875038741,-460.0,0.00019102,2]
[376141780,1753875038750,-460.0,0.00019102,2]
[376141781,1753875038759,-460.0,0.00019102,2]
[376141782,1753875038769,-460.0,0.00019102,2]
[376141784,1753875038778,-387.77837186,0.00019102,2]
[376141786,1753875038787,-460.0,0.00019102,2]
[376141787,1753875038797,-460.0,0.00019102,2]
[376141788,1753875038807,-460.0,0.00019102,2]
[376141789,1753875038816,-460.0,0.00019102,2]
[376141790,1753875038827,-460.0,0.00019102,2]
[376141791,1753875038836,-460.0,0.00019102,2]
[376141792,1753875038846,-460.0,0.00019102,2]
[376141793,1753875038854,-460.0,0.00019102,2]
[376141794,1753875038862,-460.0,0.00019102,2]
[376141795,1753875038870,-460.0,0.00019102,2]
[376141796,1753875038880,-460.0,0.00019102,2]
[376141797,1753875038890,-461.72214754,0.00019102,2]
[376141798,1753875038899,-460.0,0.00019102,2]
[376141799,1753875038910,-460.0,0.00019102,2]
[376141800,1753875038919,-460.99773524,0.00019102,2]
[376141801,1753875038929,-460.0,0.00019102,2]
[376141802,1753875038938,-460.0,0.00019102,2]
[376141803,1753875038947,-460.0,0.00019102,2]
[376141804,1753875038956,-194.78426727,0.00019102,2]
[376141805,1753875038966,-460.0,0.00019102,2]
[376141806,1753875038976,-460.0,0.00019102,2]
[376141807,1753875038985,-460.0,0.00019102,2]
[376141808,1753875038995,-468.3,0.00019102,2]
[376141809,1753875039004,-460.0,0.00019102,2]